bitfinex/quotes_ETHUSD_20250504
["timestamp","ask_amount","ask_price","bid_price","bid_amount"]
[1746347572439,10.14188071,1837.6,1837.5,3.19284632]
[1746347573143,10.14188071,1837.6,1837.5,1.59642316]
[1746347573440,10.14188071,1837.6,1837.5,3.19284632]
[1746347573638,10.446332,1837.6,1837.5,3.19284632]
[1746347574139,5.00445129,1837.6,1837.5,3.19284632]
[1746347574711,4.7,1837.6,1837.5,3.19284632]
[1746347574912,10.14188071,1837.6,1837.5,3.19284632]
[1746347575644,10.14188071,1837.6,1837.5,1.59642316]
[1746347575835,12.00471104,1837.6,1837.5,1.59642316]
[1746347577111,12.41121104,1837.6,1837.5,1.59642316]
[1746347579252,5.44249068,1837.4,1837.2,0.7644]
[1746347579454,5.44249068,1837.4,1837.3,1.59642316]
[1746347579455,5.44268549,1837.4,1837.3,1.59642316]
[1746347579957,5.74716275,1837.4,1837.3,1.59642316]
[1746347585170,0.30447726,1837.4,1837.3,1.59642316]
[1746347585655,5.44223425,1837.5,1837.3,1.59642316]
[1746347585861,10.14205085,1837.6,1837.3,1.59642316]
[1746347586059,10.14205085,1837.6,1837.5,1.59642316]
[1746347586249,12.00477051,1837.6,1837.5,1.59642316]
[1746347586450,6.56271966,1837.6,1837.5,3.99114632]
[1746347586764,12.00460037,1837.6,1837.5,2.39472316]
[1746347586966,12.00460037,1837.6,1837.5,1.59642316]
[1746347592281,6.56271966,1837.6,1837.5,1.59642316]
[1746347592483,12.00460037,1837.6,1837.5,1.59642316]
[1746347593688,5.00434131,1837.6,1837.5,4.01194632]
[1746347594560,5.00434131,1837.6,1837.5,9.45412319]
[1746347595206,4.7,1837.6,1837.5,9.45412319]
[1746347597172,4.7,1837.6,1837.5,4.01194632]
[1746347597373,4.7,1837.6,1837.5,9.45412319]
[1746347599596,4.7,1837.6,1837.5,4.01194632]
[1746347600098,4.7,1837.6,1837.5,9.45412319]
[1746347600669,4.7,1837.6,1837.5,10.94375863]
[1746347601397,4.7,1837.6,1837.5,11.49375863]
[1746347603006,4.7,1837.6,1837.5,5.50158176]
[1746347604176,5.44135815,1837.8,1837.5,5.50158176]
[1746347604376,4.696,1838.4,1837.9,9.78329243]
[1746347604589,0.54396977,1838.3,1838.0,5.44052495]
[1746347604790,0.8490033,1838.3,1837.9,10.19464215]
[1746347604967,0.8490033,1838.3,1837.9,10.24901502]
[1746347605163,0.8490033,1838.3,1838.0,5.44058444]
[1746347605500,0.8490033,1838.3,1837.9,10.19461081]
[1746347605805,1.2555033,1838.3,1838.2,1.59642316]
[1746347606100,6.39039929,1838.3,1838.2,1.59642316]
[1746347606889,6.69507067,1838.3,1838.2,1.59642316]
[1746347608019,1.25514115,1838.3,1838.2,1.59642316]
[1746347608201,6.69494966,1838.3,1838.2,1.59642316]
[1746347609124,1.25514115,1838.3,1838.2,1.59642316]
[1746347613052,6.69494966,1838.3,1838.2,1.59642316]
[1746347614355,1.25514115,1838.3,1838.2,1.59642316]
[1746347616253,0.84864115,1838.3,1838.2,1.59642316]
[1746347618071,0.84864115,1838.3,1837.9,9.63599396]
[1746347618246,0.30467138,1838.3,1838.2,1.59642316]
[1746347619666,5.74447989,1838.3,1838.2,1.59642316]
[1746347620668,5.44027182,1838.2,1838.1,1.59642316]
[1746347621035,5.7449432,1838.2,1838.1,1.59642316]
[1746347621240,0.4065,1838.1,1838.0,1.59642316]
[1746347621451,0.30467138,1838.2,1838.0,2.34772316]
[1746347621963,0.30467138,1838.1,1838.0,2.34772316]
[1746347623474,0.30467138,1838.1,1838.0,7.78841956]
[1746347623675,0.30467138,1838.3,1838.0,3.52268253]
[1746347623848,4.695,1838.2,1838.0,6.19174202]
[1746347624038,4.695,1838.2,1838.1,1.59642316]
[1746347624374,4.99967138,1838.2,1838.1,12.39704673]
[1746347624958,4.695,1838.2,1838.1,12.39704673]
[1746347625176,4.695,1838.2,1838.1,14.18079561]
[1746347626571,4.695,1838.5,1838.1,14.73079561]
[1746347626794,4.695,1838.5,1838.4,1.59642316]
[1746347627764,4.99998952,1838.5,1838.4,1.59642316]
[1746347628680,10.43920627,1838.5,1838.4,1.59642316]
[1746347628846,12.44397399,1838.5,1838.4,1.59642316]
[1746347629779,5.43992495,1838.3,1838.2,1.59642316]
[1746347629976,5.43955126,1838.4,1838.2,1.59642316]
[1746347630281,0.30498952,1838.3,1838.2,1.59642316]
[1746347631845,5.74479803,1838.3,1838.2,1.59642316]
[1746347632077,0.87946932,1838.3,1838.2,1.59642316]
[1746347632377,6.31927783,1838.3,1838.2,1.59642316]
[1746347635275,0.87946932,1838.3,1838.2,1.59642316]
[1746347637891,0.30498952,1838.3,1838.2,3.19284632]
[1746347638087,0.30498952,1838.3,1838.2,1.59642316]
[1746347639194,0.30498952,1838.3,1838.2,9.45795077]
[1746347639399,0.30498952,1838.3,1838.2,13.06234789]
[1746347639708,0.30498952,1838.3,1838.2,13.00795077]
[1746347639983,4.69,1838.5,1838.4,8.43951261]
[1746347640149,4.69,1838.5,1838.4,10.86093577]
[1746347640493,4.69,1838.5,1838.4,5.83109389]
[1746347640988,4.99544962,1838.5,1838.4,5.83109389]
[1746347641196,4.99544962,1838.5,1838.4,11.2706065]
[1746347641496,4.99544962,1838.5,1838.4,12.94163338]
[1746347642486,4.99544962,1838.5,1838.4,13.49163338]
[1746347642674,4.69,1838.5,1838.4,13.49163338]
[1746347643186,19.625,1838.7,1838.6,5.43892091]
[1746347643395,19.93015662,1838.7,1838.6,2.42142316]
[1746347645292,19.93015662,1838.7,1838.6,7.86034407]
[1746347645489,0.30515662,1838.7,1838.6,3.26822345]
[1746347645719,0.30515662,1838.7,1838.6,2.42142316]
[1746347646309,0.30515662,1838.7,1838.6,7.86034407]
[1746347648387,0.30515662,1838.7,1838.6,2.42142316]
[1746347648585,0.30515662,1838.7,1838.6,7.86034407]
[1746347649205,4.69,1838.8,1838.6,7.86034407]
[1746347649377,4.69,1838.8,1838.6,9.21389405]
[1746347650014,4.69,1838.8,1838.7,5.43862511]
[1746347650516,4.69,1838.8,1838.6,9.21372112]
[1746347650517,4.99468273,1838.8,1838.6,9.21372112]
[1746347650712,4.99468273,1838.8,1838.7,5.43862511]
[1746347650916,4.99468273,1838.8,1838.6,3.77497314]
[1746347651117,4.99468273,1838.8,1838.7,5.81612242]
[1746347651313,4.69,1838.8,1838.7,0.37749731]
[1746347651518,5.0965,1838.8,1838.7,1.59642316]
[1746347652431,4.69,1838.8,1838.7,1.59642316]
[1746347652717,4.99465243,1838.8,1838.7,1.59642316]
[1746347654210,4.99465243,1838.8,1838.7,7.03504827]
[1746347654529,4.99465243,1838.8,1838.7,2.29992799]
[1746347656117,4.99465243,1838.8,1838.7,7.7385531]
[1746347656333,4.69,1838.8,1838.7,7.7385531]
[1746347656534,4.69,1838.8,1838.7,2.29992799]
[1746347656717,4.69,1838.8,1838.7,1.59642316]
[1746347658097,10.4328615,1838.8,1838.7,1.59642316]
[1746347658293,10.8393615,1838.8,1838.7,1.59642316]
[1746347660318,5.40103216,1838.8,1838.7,1.59642316]
[1746347660516,10.8393615,1838.8,1838.7,1.59642316]
[1746347660836,11.92329765,1838.8,1838.7,1.59642316]
[1746347664737,12.02772655,1838.8,1838.7,1.59642316]
[1746347667146,12.02772655,1838.8,1838.5,1.59642316]
[1746347667147,5.43892091,1838.6,1838.5,1.59642316]
[1746347667437,5.94995058,1838.6,1838.4,1.59642316]
[1746347667645,5.43939574,1838.5,1838.4,1.59642316]
[1746347667818,6.57833037,1838.5,1838.4,1.59642316]
[1746347668017,6.88286253,1838.5,1838.4,1.59642316]
[1746347670342,1.44346679,1838.5,1838.4,1.59642316]
[1746347671109,6.88268354,1838.5,1838.4,1.59642316]
[1746347673118,5.43997254,1838.3,1838.0,3.0]
[1746347673425,4.684,1838.2,1837.9,6.20018153]
[1746347674205,4.684,1838.2,1837.9,6.20007282]
[1746347674421,4.684,1838.2,1838.1,1.59642316]
[1746347674831,4.98862049,1838.2,1838.1,1.59642316]
[1746347676119,10.42872494,1838.2,1838.1,1.59642316]
[1746347676445,12.05624429,1838.2,1838.1,1.59642316]
[1746347676833,6.61613984,1838.2,1838.1,1.59642316]
[1746347678550,12.05624429,1838.2,1838.1,1.59642316]
[1746347680846,1.93213984,1838.2,1838.1,1.59642316]
[1746347681022,4.98862049,1838.2,1838.1,1.59642316]
[1746347682555,4.98862049,1838.2,1838.1,7.03682357]
[1746347683026,4.98862049,1838.2,1838.1,9.42674673]
[1746347683653,4.98862049,1838.2,1838.1,12.42674673]
[1746347683856,4.684,1838.2,1838.1,12.42674673]
[1746347684947,4.684,1838.2,1838.1,10.83032357]
[1746347685351,4.684,1838.2,1838.1,5.38992316]
[1746347685671,4.98860362,1838.2,1838.1,5.38992316]
[1746347685860,4.98860362,1838.2,1838.1,4.59642316]
[1746347686034,5.48746398,1838.2,1838.1,4.59642316]
[1746347686559,5.48746398,1838.2,1838.1,10.03682357]
[1746347686732,4.98860362,1838.2,1838.1,4.59642316]
[1746347689976,4.98860362,1838.2,1837.9,0.8168]
[1746347690144,4.98860362,1838.2,1838.1,1.59642316]
[1746347690343,4.684,1838.2,1838.1,1.59642316]
[1746347690865,4.98873938,1838.2,1838.1,1.59642316]
[1746347691072,6.07225439,1838.2,1838.1,1.59642316]
[1746347692173,4.98873938,1838.2,1838.1,1.59642316]
[1746347693373,10.42884383,1838.2,1838.1,1.59642316]
[1746347694242,0.1044289,1838.0,1837.3,0.7607]
[1746347694447,5.44306553,1837.2,1837.1,4.36072352]
[1746347694644,5.44306553,1837.2,1837.0,4.33860772]
[1746347694645,5.44336182,1837.1,1837.0,4.33860772]
[1746347694974,5.44336182,1837.1,1836.6,2.75100579]
[1746347694975,0.71123938,1837.1,1836.6,2.75100579]
[1746347695172,10.22649443,1837.2,1837.1,2.74223888]
[1746347695361,4.73742891,1837.2,1836.5,4.29735095]
[1746347695678,4.73742891,1837.2,1836.7,2.05369132]
[1746347695679,5.44395448,1836.9,1836.7,2.05369132]
[1746347695855,5.44395448,1836.9,1836.0,0.7607]
[1746347695856,5.44454728,1836.7,1836.1,2.72032422]
[1746347696201,5.44505533,1836.6,1836.1,2.72032422]
[1746347696363,5.51889786,1836.6,1836.4,2.77859618]
[1746347696680,1e-08,1836.6,1836.4,2.77859618]
[1746347696891,1e-08,1836.6,1836.3,2.76971116]
[1746347697104,4.68,1836.5,1836.3,2.76971116]
[1746347697265,4.68,1836.5,1836.2,1.59642316]
[1746347697266,1.93220425,1836.5,1835.7,0.7874]
[1746347697457,5.44767918,1835.7,1835.5,2.74653348]
[1746347697706,4.68,1835.9,1835.5,2.74653348]
[1746347697996,4.68,1835.9,1835.2,0.7874]
[1746347697997,4.68,1835.9,1835.8,5.75389369]
[1746347698198,4.68,1835.9,1835.8,7.35031685]
[1746347698397,4.068,1835.9,1835.8,7.35031685]
[1746347698606,4.68,1836.2,1835.8,2.75389369]
[1746347698757,5.148,1836.2,1835.8,2.75389369]
[1746347698962,5.148,1836.2,1836.0,2.78699426]
[1746347699279,5.148,1836.2,1835.6,5.44766788]
[1746347699280,4.68,1836.2,1835.5,2.74653348]
[1746347699497,4.68,1836.2,1836.1,2.75211842]
[1746347699713,4.68,1836.2,1836.1,5.75211842]
[1746347700022,24.313,1836.5,1836.2,3.0]
[1746347700219,4.682,1836.8,1836.4,3.0]
[1746347700434,5.1502,1836.8,1836.4,3.0]
[1746347700918,5.44514021,1836.5,1836.4,3.0]
[1746347701126,5.44486943,1836.6,1835.9,5.68426685]
[1746347701127,5.44490242,1836.6,1835.9,5.68426685]
[1746347701329,1.47545591,1836.7,1836.3,2.96607156]
[1746347701618,1.47545591,1836.7,1836.4,0.29660716]
[1746347701817,1.47545591,1836.7,1836.4,5.7418872]
[1746347702016,1.47545591,1836.7,1836.5,8.9610669]
[1746347702325,1.47545591,1836.7,1836.6,6.76404373]
[1746347702878,0.57735231,1837.2,1837.1,0.7692]
[1746347703081,0.57735231,1837.2,1837.1,13.70151614]
[1746347704321,0.57735231,1837.2,1837.1,3.7692]
[1746347704623,0.57735231,1837.2,1837.1,3.0]
[1746347704986,0.57735231,1837.2,1836.8,2.7778834]
[1746347705186,0.57735231,1837.2,1836.9,3.25867213]
[1746347705387,6.02052719,1837.2,1836.5,2.77158622]
[1746347705585,5.44336315,1837.1,1836.5,8.21664063]
[1746347705812,0.57735231,1837.2,1836.7,2.71988135]
[1746347706012,0.57735231,1837.2,1836.9,2.70867213]
[1746347706529,0.57735231,1837.2,1837.1,8.78744338]
[1746347706899,0.57735231,1837.2,1837.1,6.34408156]
[1746347709618,0.57735231,1837.2,1837.1,11.78744338]
[1746347709816,0.57735231,1837.2,1837.1,6.34408156]
[1746347710123,0.57735231,1837.2,1837.1,11.78744338]
[1746347710305,0.57735231,1837.2,1837.1,13.26279487]
[1746347710908,0.57735231,1837.2,1837.1,14.01719487]
[1746347711282,4.682,1837.9,1837.3,5.44276041]
[1746347711482,25.07913138,1838.2,1837.8,0.55]
[1746347711786,24.321,1838.2,1837.6,0.55]
[1746347712092,5.44112224,1837.9,1837.5,5.96607156]
[1746347712818,24.321,1838.2,1837.5,5.96607156]
[1746347712993,5.44040041,1838.1,1837.5,3.0]
[1746347713193,5.44188071,1837.6,1837.2,3.0]
[1746347714217,5.44223652,1837.5,1837.0,2.76377827]
[1746347714408,5.44223652,1837.5,1837.1,6.34408156]
[1746347714603,10.33163968,1837.7,1837.1,6.34408156]
[1746347714808,10.33163968,1837.7,1837.3,2.96607156]
[1746347714986,11.1197554,1837.8,1837.3,2.96607156]
[1746347715183,5.67841682,1837.8,1837.3,2.96607156]
[1746347715382,5.67841682,1837.8,1837.2,0.55]
[1746347715383,5.44240785,1837.5,1837.2,0.55]
[1746347715629,5.44261586,1837.4,1837.1,3.0]
[1746347715922,5.44209048,1837.6,1837.1,5.96607156]
[1746347716089,5.44220495,1837.5,1837.1,5.96607156]
[1746347716891,5.4423038,1837.5,1837.1,5.96607156]
[1746347718022,5.44207353,1837.6,1837.1,5.96607156]
[1746347718223,5.44222179,1837.5,1837.1,5.96607156]
[1746347719135,5.44268111,1837.4,1837.1,5.96607156]
[1746347719345,4.89,1837.5,1836.9,2.96607156]
[1746347719490,5.44325001,1837.2,1836.9,2.96607156]
[1746347720195,5.44281882,1837.3,1836.9,2.96607156]
[1746347720419,5.44259174,1837.4,1836.9,8.40999593]
[1746347721223,10.33240122,1837.5,1836.8,3.0]
[1746347721224,4.89,1837.5,1837.1,2.96607156]
[1746347721425,11.11984444,1837.8,1837.2,3.55]
[1746347721611,4.89,1837.6,1837.4,3.0]
[1746347722023,5.379,1837.6,1837.4,3.0]
[1746347722935,4.89,1837.6,1837.5,8.95824843]
[1746347723115,4.89,1838.0,1837.5,9.72944843]
[1746347723298,4.89,1838.0,1837.6,5.44184702]
[1746347723499,10.33079665,1838.0,1837.5,9.72935732]
[1746347723710,4.89,1838.0,1837.5,9.72935732]
[1746347723911,0.30281957,1837.9,1837.7,3.51607156]
[1746347724232,0.30281957,1837.9,1837.7,8.95752998]
[1746347724629,0.30281957,1837.9,1837.7,3.51607156]
[1746347724797,0.30281957,1837.9,1837.8,9.74938849]
[1746347724997,5.44042416,1838.1,1837.8,4.3081]
[1746347725539,4.89,1838.3,1837.8,3.55]
[1746347725744,5.4408478,1838.0,1837.8,3.0]
[1746347726200,5.44099243,1837.9,1837.8,3.0]
[1746347726402,5.44099243,1837.9,1837.7,2.96607156]
[1746347726610,5.44099243,1837.9,1837.5,5.96607156]
[1746347726904,5.44217679,1837.6,1837.2,0.7581]
[1746347727140,5.44217381,1837.6,1837.2,3.7581]
[1746347727433,5.44217944,1837.5,1837.4,3.0]
[1746347728034,5.4420746,1837.6,1837.4,3.0]
[1746347728228,5.44217687,1837.5,1837.4,3.0]
[1746347728729,5.74556057,1837.5,1837.4,3.0]
[1746347729508,5.74556057,1837.5,1837.2,3.0]
[1746347729509,5.44292117,1837.3,1837.2,3.0]
[1746347729710,5.44306553,1837.2,1837.1,2.96607156]
[1746347729915,5.44306553,1837.2,1836.9,2.96607156]
[1746347730217,5.44306553,1837.2,1837.0,0.55]
[1746347730710,5.44306755,1837.2,1837.0,0.55]
[1746347730910,5.74725188,1837.1,1836.8,2.96607156]
[1746347731436,5.74725188,1837.1,1836.9,0.55]
[1746347731635,0.28463719,1837.0,1836.9,0.55]
[1746347731952,0.58838307,1837.0,1836.9,0.55]
[1746347732130,6.0320412,1837.0,1836.8,2.96607156]
[1746347732330,5.72829532,1837.0,1836.8,2.96607156]
[1746347732858,0.28463719,1837.0,1836.8,2.96607156]
[1746347733006,5.44289804,1837.3,1836.9,0.55]
[1746347733350,0.58400416,1837.2,1837.1,2.96607156]
[1746347733947,0.58400416,1837.2,1837.1,7.30717156]
[1746347734357,0.58400416,1837.2,1837.1,12.75053338]
[1746347734645,0.30393325,1837.2,1837.1,14.02559486]
[1746347734850,4.89,1837.8,1837.4,5.99233805]
[1746347735035,10.33129074,1837.8,1837.5,2.96607156]
[1746347735631,0.30403835,1837.7,1837.5,2.96607156]
[1746347736015,0.30403835,1837.7,1837.6,3.55]
[1746347737348,0.30403835,1837.7,1837.6,8.99188071]
[1746347737822,0.30403835,1837.7,1837.6,3.55]
[1746347738821,10.8818336,1838.0,1837.6,3.55]
[1746347739045,5.44106386,1837.9,1837.7,2.96607156]
[1746347739354,5.44111693,1837.9,1837.7,2.96607156]
[1746347739652,0.3040184,1837.8,1837.7,3.51607156]
[1746347740857,0.3040184,1837.8,1837.7,0.55]
[1746347743445,0.3040184,1837.8,1837.6,5.96607156]
[1746347743618,0.3040184,1837.7,1837.6,6.51607156]
[1746347745850,0.54049267,1837.7,1837.6,6.51607156]
[1746347747158,0.54049267,1837.7,1837.6,11.95795227]
[1746347747330,0.54049267,1837.7,1837.6,6.51607156]
[1746347748350,0.54049267,1837.7,1837.6,11.95795227]
[1746347748548,0.23647427,1837.7,1837.6,13.2366575]
[1746347748752,3.61920274,1838.0,1837.9,8.99099243]
[1746347748946,3.61920274,1838.0,1837.9,11.95706399]
[1746347749839,3.92321633,1838.0,1837.9,11.95706399]
[1746347750757,3.92321633,1838.0,1837.9,6.51607156]
[1746347751867,3.92321633,1838.0,1837.9,3.55]
[1746347752062,4.31553796,1838.0,1837.7,0.55]
[1746347752386,4.31553796,1838.0,1837.6,6.79087156]
[1746347752583,5.44142255,1837.8,1837.6,2.96607156]
[1746347753392,0.30401359,1837.7,1837.6,2.96607156]
[1746347755469,5.74559817,1837.7,1837.6,0.53090922]
[1746347755768,5.74559817,1837.7,1837.5,0.55]
[1746347755979,5.44198785,1837.6,1837.4,3.74047156]
[1746347756149,5.44213994,1837.6,1837.4,2.96607156]
[1746347756355,5.74576952,1837.7,1837.4,2.96607156]
[1746347756553,0.30401359,1837.5,1837.4,2.96607156]
[1746347760980,0.53989101,1837.5,1837.4,2.96607156]
[1746347761988,5.98206788,1837.5,1837.4,2.96607156]
[1746347763171,0.53989101,1837.5,1837.4,2.96607156]
[1746347763686,5.98206788,1837.5,1837.4,2.96607156]
[1746347764175,0.53989101,1837.5,1837.4,2.96607156]
[1746347765474,5.98206788,1837.5,1837.4,2.96607156]
[1746347766770,0.53989101,1837.5,1837.4,2.96607156]
[1746347768480,5.44347542,1837.1,1836.9,0.8111]
[1746347768698,4.864,1837.3,1836.4,0.8111]
[1746347768906,10.88828064,1836.9,1836.6,2.96607156]
[1746347769209,0.20445422,1836.8,1836.6,5.4446186]
[1746347769347,0.20445422,1836.8,1836.7,9.73451884]
[1746347769677,5.67841682,1837.2,1836.9,0.7739]
[1746347769883,5.67841682,1837.2,1837.1,2.96607156]
[1746347770083,4.864,1837.4,1837.3,0.55]
[1746347770247,3.61920274,1837.6,1837.4,5.44224973]
[1746347770453,3.61920274,1837.6,1837.5,8.95824843]
[1746347770661,3.92324702,1837.6,1837.5,8.95824843]
[1746347770985,3.92324702,1837.6,1837.5,9.73214843]
[1746347771363,3.61920274,1837.6,1837.5,9.73214843]
[1746347771563,3.61920274,1837.6,1837.5,12.73214843]
[1746347771765,3.61920274,1837.6,1837.5,14.63917239]
[1746347772362,3.61920274,1837.6,1837.5,9.19699552]
[1746347772571,3.61920274,1837.6,1837.3,6.21664025]
[1746347772752,3.61920274,1837.6,1837.5,2.96607156]
[1746347773076,3.61920274,1837.6,1837.5,3.51607156]
[1746347773284,3.92318307,1837.6,1837.5,3.51607156]
[1746347774065,0.30398033,1837.6,1837.5,3.51607156]
[1746347775488,0.30398033,1837.6,1837.5,9.85410246]
[1746347775694,3.61920274,1838.1,1837.9,0.55]
[1746347775854,3.61920274,1838.1,1838.0,3.51607156]
[1746347776061,4.819,1838.2,1838.1,0.55]
[1746347777877,4.76384187,1838.4,1838.3,0.55]
[1746347778082,4.76384187,1838.4,1838.3,3.51607156]
[1746347778384,4.76384187,1838.4,1838.3,2.96607156]
[1746347778771,4.76384187,1838.4,1838.3,8.95588007]
[1746347779184,3.64793022,1838.4,1838.3,8.95588007]
[1746347779570,3.64793022,1838.4,1838.3,8.19013056]
[1746347779771,3.64793022,1838.4,1838.3,8.94013056]
[1746347780588,3.64793022,1838.4,1838.3,3.50032205]
[1746347780956,5.44010445,1838.2,1838.1,2.96607156]
[1746347781180,5.4398926,1838.3,1838.1,2.96607156]
[1746347781375,4.01272324,1838.4,1838.1,2.96607156]
[1746347781566,4.01272324,1838.4,1838.3,3.51607156]
[1746347781767,3.64793022,1838.4,1838.3,9.70588007]
[1746347782110,3.64793022,1838.7,1838.4,0.55]
[1746347782295,3.64793022,1838.7,1838.5,2.96607156]
[1746347783699,3.64793022,1838.7,1838.6,0.75]
[1746347784373,8.46593022,1838.8,1838.6,0.75]
[1746347784762,5.43862511,1838.7,1838.5,2.96607156]
[1746347784962,5.43892091,1838.6,1838.5,2.96607156]
[1746347786095,13.90439602,1838.8,1838.5,2.96607156]
[1746347787065,8.46593022,1838.8,1838.6,0.75]
[1746347787264,8.46593022,1838.8,1838.7,2.96607156]
[1746347788869,8.76871534,1838.8,1838.7,2.96607156]
[1746347789801,8.46593022,1838.8,1838.7,2.96607156]
[1746347789995,3.64793022,1838.8,1838.7,2.96607156]
[1746347790694,3.86102174,1838.8,1838.7,2.96607156]
[1746347791400,0.21309152,1838.8,1838.7,2.96607156]
[1746347791699,5.43777333,1839.0,1838.7,2.96607156]
[1746347791897,19.633,1839.1,1838.7,2.96607156]
[1746347792085,5.43873245,1838.7,1838.3,2.96607156]
[1746347792294,0.2132999,1838.6,1838.3,8.40582372]
[1746347792703,0.2132999,1838.6,1838.3,2.96607156]
[1746347793504,0.2132999,1838.6,1838.3,8.40584869]
[1746347794407,0.2132999,1838.6,1838.5,2.96607156]
[1746347796479,5.43865219,1838.7,1838.5,2.96607156]
[1746347796677,0.2135031,1838.6,1838.5,2.96607156]
[1746347797786,5.43866034,1838.7,1838.5,2.96607156]
[1746347797988,0.2135031,1838.6,1838.5,2.96607156]
[1746347798597,5.65242401,1838.6,1838.5,2.96607156]
[1746347798811,0.2135031,1838.6,1838.5,2.96607156]
[1746347799509,0.51689572,1838.6,1838.5,2.96607156]
[1746347800196,0.51689572,1838.6,1838.5,0.53224361]
[1746347801286,0.51689572,1838.6,1838.5,1.08224361]
[1746347801477,0.51689572,1838.6,1838.5,0.53224361]
[1746347801684,5.95581663,1838.6,1838.5,0.53224361]
[1746347802010,0.51689572,1838.6,1838.5,0.53224361]
[1746347802213,5.95581663,1838.6,1838.5,0.53224361]
[1746347803421,0.51689572,1838.6,1838.5,0.53224361]
[1746347804916,0.2135031,1838.6,1838.3,5.98980403]
[1746347805088,0.2135031,1838.6,1838.4,2.96607156]
[1746347807217,0.2135031,1838.6,1838.4,8.40555416]
[1746347807590,10.25445695,1838.8,1838.4,8.40555416]
[1746347807813,0.2116164,1838.5,1838.4,8.40555416]
[1746347808112,5.43863653,1838.7,1838.4,2.96607156]
[1746347808481,0.21214489,1838.6,1838.4,8.40558177]
[1746347808681,4.816,1838.8,1838.4,2.96607156]
[1746347808895,10.25454267,1838.8,1838.4,2.96607156]
[1746347809218,0.21267331,1838.7,1838.4,8.4055458]
[1746347810213,0.21267331,1838.7,1838.4,2.96607156]
[1746347810518,0.21267331,1838.7,1838.6,3.51607156]
[1746347810708,0.21267331,1838.7,1838.6,8.95499247]
[1746347811294,0.21267331,1838.7,1838.6,11.95499247]
[1746347811513,3.64793022,1839.0,1838.8,5.43829665]
[1746347811697,3.64793022,1839.0,1838.8,6.20549665]
[1746347813517,4.76,1839.1,1838.9,2.9564703]
[1746347815724,5.43719493,1839.2,1838.9,2.9564703]
[1746347816303,14.52200961,1839.3,1838.9,2.9564703]
[1746347816706,5.43718743,1839.2,1838.9,2.9564703]
[1746347817525,3.64793022,1839.3,1839.1,2.9564703]
[1746347818028,3.64793022,1839.3,1839.1,9.19838462]
[1746347818423,3.64793022,1839.3,1839.2,5.98714658]
[1746347819438,3.64793022,1839.3,1839.2,6.76174658]
[1746347819643,3.64793022,1839.3,1839.2,11.31904902]
[1746347820945,8.6336192,1839.8,1839.6,5.43577642]
[1746347821230,3.8746192,1839.8,1839.7,2.9564703]
[1746347821431,3.8746192,1839.8,1839.7,8.39213915]
[1746347821598,3.8746192,1839.8,1839.7,2.9564703]
[1746347822733,3.8746192,1839.8,1839.7,8.39213915]
[1746347822933,3.8746192,1839.8,1839.7,2.9564703]
[1746347823443,5.43484532,1840.0,1839.7,2.9564703]
[1746347824217,5.43492192,1840.0,1839.7,2.9564703]
[1746347824432,5.43471089,1840.1,1839.7,2.9564703]
[1746347824735,5.3852392,1839.9,1839.7,2.9564703]
[1746347825139,5.43493878,1840.0,1839.7,2.9564703]
[1746347825501,5.43470189,1840.1,1839.7,2.9564703]
[1746347825815,10.43641682,1840.2,1839.7,2.9564703]
[1746347826149,5.4350272,1840.0,1839.7,2.9564703]
[1746347826314,5.67841682,1840.2,1839.8,0.775]
[1746347826506,11.11272523,1840.2,1840.0,2.9564703]
[1746347826841,5.67841682,1840.2,1840.0,2.9564703]
[1746347827206,11.11274492,1840.2,1840.0,2.9564703]
[1746347827407,5.67841682,1840.2,1840.0,2.9564703]
[1746347827614,11.11268256,1840.2,1840.0,2.9564703]
[1746347828136,5.67841682,1840.2,1840.0,2.9564703]
[1746347828306,5.43380932,1840.4,1840.0,2.9564703]
[1746347828709,0.16976314,1840.3,1840.2,2.9564703]
[1746347829053,5.43374202,1840.4,1840.2,2.9564703]
[1746347829342,0.16925583,1840.3,1840.2,2.9564703]
[1746347829526,10.19144133,1840.5,1840.2,2.9564703]
[1746347829911,0.17084862,1840.4,1840.2,2.9564703]
[1746347830503,0.17084862,1840.4,1840.3,6.20889664]
[1746347830800,0.4145134,1840.6,1840.3,0.775]
[1746347831041,0.3645134,1840.6,1840.4,2.9564703]
[1746347831740,5.10105833,1840.6,1840.4,2.9564703]
[1746347832102,5.10105833,1840.6,1840.4,0.52430961]
[1746347833215,5.10105833,1840.6,1840.4,0.57864133]
[1746347833419,5.10105833,1840.6,1840.4,6.01215162]
[1746347833642,5.10105833,1840.6,1840.5,1.59398704]
[1746347834408,0.3645134,1840.6,1840.5,1.59398704]
[1746347834912,5.79760025,1840.6,1840.3,1.59398704]
[1746347835108,0.3645134,1840.6,1840.3,1.59398704]
[1746347835314,5.7976265,1840.6,1840.3,1.59398704]
[1746347835536,5.43345948,1840.5,1840.3,1.59398704]
[1746347835848,5.59484973,1840.4,1840.3,1.59398704]
[1746347836929,5.43441787,1840.2,1840.1,1.59398704]
[1746347837320,0.15791192,1840.2,1840.1,1.59398704]
[1746347837644,0.15791192,1840.2,1840.1,2.95255955]
[1746347838030,5.43419193,1840.2,1840.1,2.95255955]
[1746347838639,5.59107706,1840.2,1840.1,2.95255955]
[1746347839348,0.15688513,1840.2,1840.1,2.95255955]
[1746347841234,5.43411417,1840.3,1840.1,2.95255955]
[1746347841434,0.15688513,1840.2,1840.1,2.95255955]
[1746347842045,5.59107706,1840.2,1840.1,2.95255955]
[1746347843248,5.43466935,1840.1,1839.9,2.95255955]
[1746347843421,5.4347826,1840.0,1839.9,2.95255955]
[1746347843622,5.59147327,1840.0,1839.9,2.95255955]
[1746347844447,0.15669067,1840.0,1839.9,2.95255955]
[1746347846011,5.59147327,1840.0,1839.9,2.95255955]
[1746347846212,5.43520953,1839.9,1839.7,3.72575955]
[1746347846415,5.59168658,1840.0,1839.7,3.72575955]
[1746347846633,0.15486013,1839.8,1839.7,3.72575955]
[1746347846850,5.43499591,1840.0,1839.7,2.95255955]
[1746347847052,0.15486013,1839.8,1839.7,2.95255955]
[1746347847248,5.43499591,1840.0,1839.7,2.95255955]
[1746347847421,0.15486013,1839.8,1839.7,2.95255955]
[1746347847621,5.43511337,1839.9,1839.7,2.95255955]
[1746347847856,0.15486013,1839.8,1839.7,2.95255955]
[1746347848318,5.43537341,1839.8,1839.7,2.95255955]
[1746347848522,5.59023354,1839.8,1839.7,2.95255955]
[1746347848919,0.15486013,1839.8,1839.5,2.95255955]
[1746347849249,5.43552376,1839.8,1839.5,2.95255955]
[1746347849454,0.15355509,1839.7,1839.5,2.95255955]
[1746347850552,0.15355509,1839.7,1839.3,3.75615955]
[1746347850720,5.43637982,1839.5,1839.3,2.95255955]
[1746347850935,0.14607226,1839.4,1839.3,2.95255955]
[1746347851881,5.43615359,1839.6,1839.3,2.95255955]